fUST/lending_fUST_20240624
["ID","MTS","AMOUNT","RATE_DAILY","PERIOD"]
[330213324,1719169838251,-420.0,0.0001567,2]
[330213325,1719169838261,-947.47485199,0.00015784,2]
[330213326,1719169838270,-154.83742071,0.00015784,2]
[330213327,1719169838279,-189.0849716,0.00015784,2]
[330213328,1719169838288,-947.47485199,0.00015784,2]
[330213329,1719169838298,-1117.60475758,0.000159,2]
[330213330,1719169838306,-154.83742071,0.000159,2]
[330213331,1719169838315,-154.83742071,0.000159,2]
[330213332,1719169838324,-3714.91504922,0.00015901,2]
[330213333,1719169838333,-3923.20622618,0.00015999,2]
[330213334,1719169838341,-990.49460368,0.00015999,2]
[330213335,1719169838350,-292.95882568,0.00015999,2]
[330213336,1719169838359,-154.83742071,0.00015999,2]
[330213337,1719169838368,-154.83742071,0.00016136,2]
[330213338,1719169838377,-154.83742071,0.00016137,2]
[330213339,1719169838387,-154.83742071,0.00016138,2]
[330213340,1719169838396,-175.97073239,0.00016139,2]
[330213341,1719169838405,-239.52424691,0.00016139,2]
[330213342,1719169838414,-524.30320237,0.00016171,2]
[330213343,1719169838422,-373.67425734,0.00016182,2]
[330213344,1719169838431,-154.83742071,0.00016183,2]
[330213345,1719169838440,-154.83742071,0.00016183,2]
[330213346,1719169838449,-531.01956017,0.00016192,2]
[330213347,1719169838458,-318.0264791,0.00016253,2]
[330213348,1719169838467,-719.14295483,0.00016338,2]
[330213349,1719169838476,-195.45518522,0.00016376,2]
[330213350,1719169838485,-195.45518522,0.00016376,2]
[330213351,1719169838494,-723.68394442,0.00016399,2]
[330213352,1719169838503,-2823.67048429,0.000164,2]
[330213353,1719169838512,-154.83742071,0.00016401,2]
[330213354,1719169838521,-159.70589002,0.00016401,2]
[330213355,1719169838530,-154.83742071,0.00016437,2]
[330213356,1719169838539,-2416.50301873,0.00016437,2]
[330213357,1719169838547,-500.0,0.00016438,2]
[330213358,1719169838556,-500.0,0.00016438,2]
[330213359,1719169838565,-500.0,0.00016438,2]
[330213360,1719169838574,-594.81,0.00016438,2]
[330213361,1719169838583,-500.0,0.00016438,2]
[330213362,1719169838592,-500.0,0.00016438,2]
[330213363,1719169838601,-500.0,0.00016438,2]
[330213364,1719169838610,-500.0,0.00016438,2]
[330213365,1719169838619,-512.20271342,0.00016438,2]
[330213366,1719169838627,-500.0,0.00016438,2]
[330213367,1719169838638,-500.0,0.00016438,2]
[330213368,1719169838647,-500.0,0.00016438,2]
[330213369,1719169838656,-500.0,0.00016438,2]
[330213370,1719169838665,-500.0,0.00016438,2]
[330213371,1719169838675,-500.0,0.00016438,2]
[330213372,1719169838684,-500.0,0.00016438,2]
[330213373,1719169838693,-641.4,0.00016438,2]
[330213374,1719169838703,-548.05,0.00016438,2]
[330213375,1719169838712,-513.60575091,0.00016438,2]
[330213376,1719169838721,-500.0,0.00016438,2]
[330213377,1719169838730,-500.0,0.00016438,2]
[330213378,1719169838740,-500.0,0.00016438,2]
[330213379,1719169838749,-500.0,0.00016438,2]
[330213380,1719169838757,-500.0,0.00016438,2]
[330213381,1719169838770,-500.0,0.00016438,2]
[330213382,1719169838780,-915.44,0.00016438,2]
[330213383,1719169838789,-500.0,0.00016438,2]
[330213384,1719169838798,-500.0,0.00016438,2]
[330213385,1719169838808,-565.76,0.00016438,2]
[330213386,1719169838817,-500.0,0.00016438,2]
[330213387,1719169838826,-1305.87,0.00016438,2]
[330213388,1719169838835,-500.0,0.00016438,2]
[330213389,1719169838845,-500.0,0.00016438,2]
[330213390,1719169838856,-376.7183395,0.00016438,2]
[330213391,1719169838867,-500.0,0.00016438,2]
[330213392,1719169838876,-559.31710814,0.00016438,2]
[330213393,1719169838886,-500.0,0.00016438,2]
[330213394,1719169838895,-543.72,0.00016438,2]
[330213395,1719169838904,-500.0,0.00016438,2]
[330213396,1719169838914,-250.0,0.00016438,2]
[330213397,1719169838924,-519.6408046,0.00016438,2]
[330213398,1719169838933,-500.0,0.00016438,2]
[330213399,1719169838944,-500.0,0.00016438,2]
[330213400,1719169838953,-500.0,0.00016438,2]
[330213401,1719169838962,-500.0,0.00016438,2]
[330213402,1719169838972,-500.0,0.00016438,2]
[330213403,1719169838981,-500.0,0.00016438,2]
[330213404,1719169838991,-500.0,0.00016438,2]
[330213405,1719169839001,-500.0,0.00016438,2]
[330213406,1719169839011,-500.0,0.00016438,2]
[330213407,1719169839022,-500.0,0.00016438,2]
[330213408,1719169839032,-258.10119804,0.00016438,2]
[330213409,1719169839043,-500.0,0.00016438,2]
[330213410,1719169839053,-2672.93,0.00016438,2]
[330213411,1719169839063,-500.0,0.00016438,2]
[330213412,1719169839073,-500.0,0.00016438,2]
[330213413,1719169839083,-500.0,0.00016438,2]
[330213414,1719169839092,-500.0,0.00016438,2]
[330213415,1719169839103,-500.0,0.00016438,2]
[330213416,1719169839114,-1537.66,0.00016438,2]
[330213417,1719169839124,-509.42238587,0.00016438,2]
[330213418,1719169839134,-806.24,0.00016438,2]
[330213419,1719169839144,-500.0,0.00016438,2]
[330213420,1719169839154,-500.0,0.00016438,2]
[330213421,1719169839164,-500.0,0.00016438,2]
[330213422,1719169839174,-555.18,0.00016438,2]
[330213423,1719169839184,-500.0,0.00016438,2]
[330213424,1719169839194,-511.84843862,0.00016438,2]
[330213425,1719169839204,-500.0,0.00016438,2]
[330213426,1719169839214,-500.0,0.00016438,2]
[330213427,1719169839224,-500.0,0.00016438,2]
[330213428,1719169839235,-500.0,0.00016438,2]
[330213429,1719169839245,-578.48,0.00016438,2]
[330213430,1719169839255,-500.0,0.00016438,2]
[330213431,1719169839265,-500.0,0.00016438,2]
[330213432,1719169839276,-500.0,0.00016438,2]
[330213433,1719169839287,-500.0,0.00016438,2]
[330213434,1719169839297,-503.83079557,0.00016438,2]
[330213435,1719169839308,-500.0,0.00016438,2]
[330213436,1719169839319,-1061.07,0.00016438,2]
[330213437,1719169839329,-500.0,0.00016438,2]
[330213438,1719169839340,-500.0,0.00016438,2]
[330213439,1719169839351,-500.0,0.00016438,2]
[330213440,1719169839361,-500.0,0.00016438,2]
[330213441,1719169839371,-500.0,0.00016438,2]
[330213442,1719169839382,-739.13,0.00016438,2]
[330213443,1719169839392,-500.0,0.00016438,2]
[330213444,1719169839401,-500.0,0.00016438,2]
[330213445,1719169839412,-1725.87,0.00016438,2]
[330213446,1719169839423,-500.0,0.00016438,2]
[330213447,1719169839434,-500.0,0.00016438,2]
[330213448,1719169839444,-500.0,0.00016438,2]
[330213449,1719169839454,-520.59927141,0.00016438,2]
[330213450,1719169839464,-500.0,0.00016438,2]
[330213451,1719169839474,-512.44925128,0.00016438,2]
[330213452,1719169839484,-500.0,0.00016438,2]
[330213453,1719169839494,-500.0,0.00016438,2]
[330213454,1719169839504,-500.0,0.00016438,2]
[330213455,1719169839514,-500.0,0.00016438,2]
[330213456,1719169839524,-500.0,0.00016438,2]
[330213457,1719169839534,-500.0,0.00016438,2]
[330213458,1719169839544,-500.0,0.00016438,2]
[330213459,1719169839553,-500.0,0.00016438,2]
[330213460,1719169839563,-500.0,0.00016438,2]
[330213461,1719169839572,-1144.15,0.00016438,2]
[330213462,1719169839582,-500.0,0.00016438,2]
[330213463,1719169839592,-500.0,0.00016438,2]
[330213464,1719169839603,-293.07732743,0.00016438,2]
[330213465,1719169839613,-656.89,0.00016438,2]
[330213466,1719169839623,-500.0,0.00016438,2]
[330213467,1719169839634,-500.0,0.00016438,2]
[330213468,1719169839643,-472.60205159,0.00016438,2]
[330213469,1719169839653,-500.0,0.00016438,2]
[330213470,1719169839663,-1469.23,0.00016438,2]
[330213471,1719169839673,-1839.55,0.00016438,2]
[330213472,1719169839684,-500.0,0.00016438,2]
[330213473,1719169839693,-500.0,0.00016438,2]
[330213474,1719169839703,-500.0,0.00016438,2]
[330213475,1719169839713,-1374.83,0.00016438,2]
[330213476,1719169839723,-500.0,0.00016438,2]
[330213478,1719169839876,-500.0,0.00016438,2]
[330213479,1719169839887,-500.0,0.00016438,2]
[330213480,1719169839898,-529.15,0.00016438,2]
[330213481,1719169839908,-500.0,0.00016438,2]
[330213482,1719169839918,-500.0,0.00016438,2]
[330213483,1719169839928,-4243.1,0.00016438,2]
[330213484,1719169839937,-500.0,0.00016438,2]
[330213485,1719169839948,-520.51810752,0.00016438,2]
[330213486,1719169839957,-500.0,0.00016438,2]
[330213487,1719169839968,-500.0,0.00016438,2]
[330213488,1719169839977,-500.0,0.00016438,2]
[330213489,1719169839986,-449.73124058,0.00016438,2]
[330213490,1719169839997,-500.0,0.00016438,2]
[330213491,1719169840007,-986.6,0.00016438,2]
[330213492,1719169840017,-500.0,0.00016438,2]
[330213494,1719169840026,-500.0,0.00016438,2]
[330213495,1719169840036,-500.0,0.00016438,2]
[330213497,1719169840045,-500.0,0.00016438,2]
[330213498,1719169840055,-500.0,0.00016438,2]
[330213500,1719169840065,-500.0,0.00016438,2]
[330213501,1719169840075,-500.0,0.00016438,2]
[330213502,1719169840085,-500.0,0.00016438,2]
[330213503,1719169840094,-547.01,0.00016438,2]
[330213504,1719169840104,-500.0,0.00016438,2]
[330213505,1719169840113,-500.0,0.00016438,2]
[330213506,1719169840123,-500.0,0.00016438,2]
[330213507,1719169840132,-897.91,0.00016438,2]
[330213508,1719169840142,-1550.36,0.00016438,2]
[330213509,1719169840151,-500.0,0.00016438,2]
[330213510,1719169840160,-500.0,0.00016438,2]
[330213511,1719169840169,-633.56,0.00016438,2]
[330213512,1719169840179,-632.33,0.00016438,2]
[330213513,1719169840189,-426.9345968,0.00016438,2]
[330213514,1719169840198,-500.0,0.00016438,2]
[330213515,1719169840207,-500.0,0.00016438,2]
[330213516,1719169840217,-500.0,0.00016438,2]
[330213517,1719169840226,-500.0,0.00016438,2]
[330213518,1719169840236,-500.0,0.00016438,2]
[330213519,1719169840245,-1871.31,0.00016438,2]
[330213520,1719169840254,-500.0,0.00016438,2]
[330213521,1719169840264,-2195.58,0.00016438,2]
[330213522,1719169840274,-500.0,0.00016438,2]
[330213523,1719169840283,-500.0,0.00016438,2]
[330213524,1719169840292,-582.98,0.00016438,2]
[330213525,1719169840302,-500.0,0.00016438,2]
[330213526,1719169840311,-503.23688875,0.00016438,2]
[330213527,1719169840320,-500.0,0.00016438,2]
[330213528,1719169840329,-500.0,0.00016438,2]
[330213529,1719169840341,-513.51302212,0.00016438,2]
[330213530,1719169840350,-500.0,0.00016438,2]
[330213531,1719169840360,-500.0,0.00016438,2]
[330213533,1719169840370,-500.0,0.00016438,2]
[330213535,1719169840379,-500.0,0.00016438,2]
[330213537,1719169840388,-500.0,0.00016438,2]
[330213538,1719169840399,-779.76,0.00016438,2]
[330213540,1719169840409,-500.0,0.00016438,2]
[330213542,1719169840419,-500.0,0.00016438,2]
[330213544,1719169840429,-519.71546097,0.00016438,2]
[330213546,1719169840438,-500.0,0.00016438,2]
[330213547,1719169840447,-500.0,0.00016438,2]
[330213549,1719169840457,-631.95,0.00016438,2]
[330213550,1719169840466,-500.0,0.00016438,2]
[330213551,1719169840476,-500.0,0.00016438,2]
[330213552,1719169840485,-500.0,0.00016438,2]
[330213553,1719169840494,-512.93,0.00016438,2]
[330213554,1719169840503,-613.03,0.00016438,2]
[330213555,1719169840512,-1067.67,0.00016438,2]
[330213556,1719169840522,-1240.14,0.00016438,2]
[330213557,1719169840531,-505.95,0.00016438,2]
[330213558,1719169840540,-500.0,0.00016438,2]
[330213559,1719169840550,-1015.85,0.00016438,2]
[330213560,1719169840559,-500.0,0.00016438,2]
[330213561,1719169840569,-500.0,0.00016438,2]
[330213562,1719169840578,-500.0,0.00016438,2]
[330213563,1719169840588,-1570.11,0.00016438,2]
[330213564,1719169840597,-500.0,0.00016438,2]
[330213565,1719169840606,-500.0,0.00016438,2]
[330213566,1719169840616,-500.0,0.00016438,2]
[330213567,1719169840625,-500.0,0.00016438,2]
[330213568,1719169840635,-1442.24,0.00016438,2]
[330213569,1719169840644,-808.38,0.00016438,2]
[330213570,1719169840654,-500.0,0.00016438,2]
[330213571,1719169840663,-34340.45,0.00016438,2]
[330213572,1719169840673,-500.0,0.00016438,2]
[330213573,1719169840682,-500.0,0.00016438,2]
[330213574,1719169840691,-500.0,0.00016438,2]
[330213575,1719169840700,-500.0,0.00016438,2]
[330213576,1719169840710,-787.14,0.00016438,2]
[330213577,1719169840719,-3312.32,0.00016438,2]
[330213578,1719169840729,-7734.7,0.00016438,2]
[330213579,1719169840738,-497.86083053,0.00016438,2]
[330213580,1719169840747,-500.0,0.00016438,2]
[330213581,1719169840756,-8625.0032989,0.00016438,2]
[330213582,1719169840899,-626.91764322,0.00016252,2]
[330213583,1719169840908,-13053.5367011,0.00016438,2]
[330213584,1719169840918,-500.0,0.00016438,2]
[330213585,1719169840930,-500.0,0.00016438,2]
[330213586,1719169840940,-6885.02,0.00016438,2]
[330213587,1719169840950,-500.0,0.00016438,2]
[330213588,1719169840959,-500.0,0.00016438,2]
[330213589,1719169840969,-889.42,0.00016438,2]
[330213590,1719169840978,-500.0,0.00016438,2]
[330213591,1719169840987,-500.0,0.00016438,2]
[330213592,1719169840996,-500.0,0.00016438,2]
[330213593,1719169841006,-1436.57,0.00016438,2]
[330213594,1719169841015,-500.0,0.00016438,2]
[330213595,1719169841025,-500.0,0.00016438,2]
[330213596,1719169841035,-500.0,0.00016438,2]
[330213597,1719169841044,-734.25,0.00016438,2]
[330213598,1719169841053,-500.0,0.00016438,2]
[330213599,1719169841062,-604.9,0.00016438,2]
[330213600,1719169841071,-1667.77,0.00016438,2]
[330213601,1719169841081,-602.30218195,0.00016438,2]
[330213602,1719169841090,-500.0,0.00016438,2]
[330213603,1719169841099,-500.0,0.00016438,2]
[330213605,1719169841108,-517.26,0.00016438,2]
[330213606,1719169841118,-2631.3,0.00016438,2]
[330213607,1719169841127,-599.03,0.00016438,2]
[330213608,1719169841137,-500.0,0.00016438,2]
[330213609,1719169841146,-500.0,0.00016438,2]
[330213610,1719169841155,-500.0,0.00016438,2]
[330213611,1719169841164,-1164.96,0.00016438,2]
[330213612,1719169841173,-3335.39266849,0.00016438,2]
[330213640,1719169858128,388.95,0.00010959,2]
[330213641,1719169868933,324.13,0.00010959,2]
[330213642,1719169879475,270.11,0.00010959,2]
[330213643,1719169890007,225.09,0.00010959,2]
[330213644,1719169900886,187.57,0.00010959,2]
[330213645,1719169912133,154.83742071,0.00013283,2]
[330213646,1719169925573,360.8257249,0.00013283,2]
[330213647,1719169932849,156.31,0.00010959,2]
[330213648,1719169943406,156.31,0.00010959,2]
[330213649,1719169954012,625.28,0.00010959,2]
[330213672,1719170319150,134.72453614,0.00013283,4]
[330213673,1719170319181,663.80050438,0.00013283,4]
[330213674,1719170322218,524.35716251,0.00013283,2]
[330213675,1719170339614,155.44364995,0.00013283,2]
[330213678,1719170413995,188.315825,0.00013859,2]
[330213683,1719170698082,521.5832114,0.00013454,2]
[330213686,1719170721671,2114.6658193,0.00013292,2]
[330213687,1719170761686,3515.85425947,0.00014,2]
[330213689,1719170888426,160.0,0.00020745,10]
[330213692,1719170968023,701.2837482,0.00013223,2]
[330213694,1719171022621,3000.0,0.00013699,2]
[330213741,1719171032385,-154.76012081,0.000141,2]
[330213743,1719171032395,-286.28584901,0.00014162,2]
[330213745,1719171032408,-3337.05821418,0.00014162,2]
[330213748,1719171032419,-91.57098605,0.00014162,2]
[330213750,1719171032428,-940.31319151,0.00014162,2]
[330213752,1719171032441,-73.66933303,0.00014162,2]
[330213754,1719171032450,-300.0,0.00014183,2]
[330213756,1719171032459,-300.0,0.00014184,2]
[330213758,1719171032468,-302.08066697,0.00014185,2]
[330213760,1719171032481,-2637.25044214,0.00014185,2]
[330213762,1719171032493,-1861.49410288,0.00014185,2]
[330213764,1719171032504,-1284.5294023,0.00014185,2]
[330213891,1719171038667,-18814.64538571,0.00014185,2]
[330213892,1719171038677,-2647.15982238,0.00014247,2]
[330213893,1719171038687,-1630.734455,0.00014466,2]
[330213894,1719171038696,-2001.38033691,0.0001458,2]
[330213895,1719171038708,-1713.53471231,0.0001458,2]
[330213896,1719171038718,-472.45851268,0.000149,2]
[330213897,1719171038728,-2145.11469784,0.00014998,2]
[330213898,1719171038738,-3714.91504922,0.00014999,2]
[330213899,1719171038747,-154.83742071,0.00015044,2]
[330213900,1719171038757,-3923.20622618,0.00015044,2]
[330213901,1719171038767,-292.95882568,0.00015114,2]
[330213902,1719171038777,-42175.40753023,0.00015202,2]
[330213903,1719171038786,-156.42887627,0.00015416,2]
[330213904,1719171038796,-3714.91504922,0.00015417,2]
[330213905,1719171038805,-420.0,0.00015535,2]
[330213906,1719171038815,-18427.30820839,0.00015589,2]
[330213907,1719171038824,-420.0,0.00015603,2]
[330213908,1719171038834,-2823.67048429,0.00015661,2]
[330213909,1719171038844,-6971.98727304,0.00015722,2]
[330213910,1719171038853,-524.35716251,0.00015745,2]
[330213911,1719171038863,-154.83742071,0.00015745,2]
[330213912,1719171038872,-898.61359266,0.00015745,2]
[330213913,1719171038882,-154.83742071,0.00015834,2]
[330213914,1719171038892,-3714.91504922,0.00015835,2]
[330213915,1719171038901,-10560.92625688,0.00015883,2]
[330213916,1719171038911,-10560.92625688,0.00015883,2]
[330213917,1719171038920,-154.83742071,0.00015883,2]
[330213918,1719171038930,-2000.0,0.00015901,2]
[330213919,1719171038939,-1013.98252453,0.00015949,2]
[330213920,1719171038949,-729.85869369,0.00015975,2]
[330213921,1719171038959,-2416.50301873,0.00015999,2]
[330213922,1719171038968,-11117.37808337,0.00015999,2]
[330213923,1719171038978,-159.70589002,0.00015999,2]
[330213924,1719171038988,-154.83742071,0.00016001,2]
[330213925,1719171038997,-947.47485199,0.00016001,2]
[330213926,1719171039007,-626.91764322,0.00016278,2]
[330213927,1719171039017,-524.30320237,0.00016279,2]
[330213928,1719171039028,-154.83742071,0.00016333,2]
[330213929,1719171039039,-154.83742071,0.00016333,2]
[330213930,1719171039049,-154.83742071,0.00016334,2]
[330213931,1719171039059,-154.83742071,0.00016334,2]
[330213932,1719171039070,-239.52424691,0.00016335,2]
[330213933,1719171039081,-154.83742071,0.00016363,2]
[330213934,1719171039090,-195.45518522,0.00016363,2]
[330213935,1719171039100,-154.83742071,0.00016364,2]
[330213936,1719171039110,-990.49460368,0.00016364,2]
[330213937,1719171039121,-531.01956017,0.00016365,2]
[330213938,1719171039131,-159.33316742,0.00016365,2]
[330213939,1719171039141,-154.83742071,0.00016376,2]
[330213940,1719171039152,-154.83742071,0.00016376,2]
[330213941,1719171039162,-318.0264791,0.00016376,2]
[330213942,1719171039175,-318.0264791,0.00016376,2]
[330213943,1719171039186,-723.68394442,0.00016376,2]
[330213944,1719171039197,-373.67425734,0.00016401,2]
[330213945,1719171039207,-154.83742071,0.00016401,2]
[330213946,1719171039219,-154.83742071,0.00016404,2]
[330213947,1719171039229,-500.0,0.00016438,2]
[330213948,1719171039239,-500.0,0.00016438,2]
[330213949,1719171039249,-500.0,0.00016438,2]
[330213950,1719171039260,-500.0,0.00016438,2]
[330213951,1719171039271,-500.0,0.00016438,2]
[330213952,1719171039281,-500.0,0.00016438,2]
[330213953,1719171039291,-500.0,0.00016438,2]
[330213954,1719171039302,-555.18,0.00016438,2]
[330213955,1719171039311,-500.0,0.00016438,2]
[330213956,1719171039321,-500.0,0.00016438,2]
[330213957,1719171039331,-500.0,0.00016438,2]
[330213958,1719171039341,-503.83079557,0.00016438,2]
[330213959,1719171039351,-500.0,0.00016438,2]
[330213960,1719171039361,-500.0,0.00016438,2]
[330213961,1719171039371,-500.0,0.00016438,2]
[330213962,1719171039381,-500.0,0.00016438,2]
[330213963,1719171039392,-500.0,0.00016438,2]
[330213964,1719171039402,-578.48,0.00016438,2]
[330213965,1719171039413,-500.0,0.00016438,2]
[330213966,1719171039423,-500.0,0.00016438,2]
[330213967,1719171039433,-520.59927141,0.00016438,2]
[330213968,1719171039443,-512.44925128,0.00016438,2]
[330213969,1719171039456,-500.0,0.00016438,2]
[330213970,1719171039466,-739.13,0.00016438,2]
[330213971,1719171039480,-500.0,0.00016438,2]
[330213972,1719171039491,-500.0,0.00016438,2]
[330213973,1719171039501,-500.0,0.00016438,2]
[330213974,1719171039511,-293.07732743,0.00016438,2]
[330213975,1719171039521,-500.0,0.00016438,2]
[330213976,1719171039532,-656.89,0.00016438,2]
[330213977,1719171039542,-500.0,0.00016438,2]
[330213978,1719171039552,-500.0,0.00016438,2]
[330213979,1719171039563,-500.0,0.00016438,2]
[330213980,1719171039574,-500.0,0.00016438,2]
[330213981,1719171039585,-500.0,0.00016438,2]
[330213982,1719171039596,-500.0,0.00016438,2]
[330213983,1719171039607,-500.0,0.00016438,2]
[330213984,1719171039618,-500.0,0.00016438,2]
[330213985,1719171039629,-529.15,0.00016438,2]
[330213986,1719171039640,-500.0,0.00016438,2]
[330213987,1719171039650,-500.0,0.00016438,2]
[330213988,1719171039661,-547.01,0.00016438,2]
[330213989,1719171039671,-500.0,0.00016438,2]
[330213990,1719171039682,-376.7183395,0.00016438,2]
[330213991,1719171039693,-500.0,0.00016438,2]
[330213992,1719171039705,-500.0,0.00016438,2]
[330213993,1719171039715,-500.0,0.00016438,2]
[330213994,1719171039726,-520.51810752,0.00016438,2]
[330213995,1719171039737,-500.0,0.00016438,2]
[330213996,1719171039747,-500.0,0.00016438,2]
[330213997,1719171039757,-1550.36,0.00016438,2]
[330213998,1719171039768,-500.0,0.00016438,2]
[330213999,1719171039778,-500.0,0.00016438,2]
[330214000,1719171039788,-986.6,0.00016438,2]
[330214001,1719171039799,-632.33,0.00016438,2]
[330214002,1719171039808,-500.0,0.00016438,2]
[330214003,1719171039819,-500.0,0.00016438,2]
[330214004,1719171039829,-500.0,0.00016438,2]
[330214005,1719171039839,-500.0,0.00016438,2]
[330214006,1719171039850,-500.0,0.00016438,2]
[330214007,1719171039859,-500.0,0.00016438,2]
[330214008,1719171039869,-500.0,0.00016438,2]
[330214009,1719171039879,-519.71546097,0.00016438,2]
[330214010,1719171039889,-582.98,0.00016438,2]
[330214011,1719171039900,-500.0,0.00016438,2]
[330214012,1719171039910,-1537.66,0.00016438,2]
[330214013,1719171039920,-806.24,0.00016438,2]
[330214014,1719171039931,-500.0,0.00016438,2]
[330214015,1719171039942,-613.03,0.00016438,2]
[330214016,1719171039958,-1067.67,0.00016438,2]
[330214017,1719171039969,-505.95,0.00016438,2]
[330214018,1719171039979,-500.0,0.00016438,2]
[330214019,1719171039989,-500.0,0.00016438,2]
[330214020,1719171039999,-500.0,0.00016438,2]
[330214021,1719171040010,-500.0,0.00016438,2]
[330214022,1719171040020,-500.0,0.00016438,2]
[330214023,1719171040030,-500.0,0.00016438,2]
[330214024,1719171040040,-500.0,0.00016438,2]
[330214025,1719171040050,-1061.07,0.00016438,2]
[330214026,1719171040059,-500.0,0.00016438,2]
[330214027,1719171040070,-500.0,0.00016438,2]
[330214028,1719171040080,-1442.24,0.00016438,2]
[330214029,1719171040090,-500.0,0.00016438,2]
[330214030,1719171040101,-500.0,0.00016438,2]
[330214031,1719171040112,-1725.87,0.00016438,2]
[330214032,1719171040122,-500.0,0.00016438,2]
[330214033,1719171040133,-500.0,0.00016438,2]
[330214034,1719171040143,-500.0,0.00016438,2]
[330214035,1719171040154,-497.86083053,0.00016438,2]
[330214036,1719171040164,-500.0,0.00016438,2]
[330214037,1719171040178,-500.0,0.00016438,2]
[330214038,1719171040188,-500.0,0.00016438,2]
[330214039,1719171040200,-500.0,0.00016438,2]
[330214040,1719171040210,-500.0,0.00016438,2]
[330214041,1719171040222,-500.0,0.00016438,2]
[330214042,1719171040232,-500.0,0.00016438,2]
[330214043,1719171040243,-500.0,0.00016438,2]
[330214044,1719171040255,-500.0,0.00016438,2]
[330214045,1719171040265,-500.0,0.00016438,2]
[330214046,1719171040276,-500.0,0.00016438,2]
[330214047,1719171040286,-500.0,0.00016438,2]
[330214048,1719171040297,-500.0,0.00016438,2]
[330214049,1719171040307,-167.99217524,0.00016438,2]
[330214050,1719171040317,-1201.0,0.00016438,2]
[330214051,1719171040327,-505.76287138,0.00016438,2]
[330214052,1719171040338,-500.0,0.00016438,2]
[330214053,1719171040348,-1469.23,0.00016438,2]
[330214054,1719171040359,-500.0,0.00016438,2]
[330214055,1719171040369,-1374.83,0.00016438,2]
[330214056,1719171040380,-500.0,0.00016438,2]
[330214057,1719171040390,-1116.42,0.00016438,2]
[330214058,1719171040400,-4243.1,0.00016438,2]
[330214059,1719171040411,-500.0,0.00016438,2]
[330214060,1719171040422,-500.0,0.00016438,2]
[330214061,1719171040433,-500.0,0.00016438,2]
[330214063,1719171040443,-472.60205159,0.00016438,2]
[330214064,1719171040455,-726.77,0.00016438,2]
[330214066,1719171040466,-1839.55,0.00016438,2]
[330214068,1719171040477,-500.0,0.00016438,2]
[330214070,1719171040487,-500.0,0.00016438,2]
[330214072,1719171040498,-500.0,0.00016438,2]
[330214074,1719171040509,-500.0,0.00016438,2]
[330214075,1719171040520,-516.27778692,0.00016438,2]
[330214076,1719171040531,-500.0,0.00016438,2]
[330214077,1719171040541,-500.0,0.00016438,2]
[330214078,1719171040552,-500.0,0.00016438,2]
[330214079,1719171040563,-555.47457912,0.00016438,2]
[330214080,1719171040573,-449.73124058,0.00016438,2]
[330214081,1719171040584,-633.56,0.00016438,2]
[330214082,1719171040595,-500.0,0.00016438,2]
[330214083,1719171040606,-897.91,0.00016438,2]
[330214084,1719171040618,-500.0,0.00016438,2]
[330214085,1719171040628,-500.0,0.00016438,2]
[330214086,1719171040639,-1871.31,0.00016438,2]
[330214087,1719171040650,-500.0,0.00016438,2]